Cogmind - Beta 9.5 @@@ ROGUE MODE // 2020.04.08 @ 12:01:06 // AFD2020/Player2 Player: Kyzrati Result: Destroyed by S-27 Virus with Autogun Performance ------------- Evolutions (5) 2500 Regions Visited (13) 2600 Robots Destroyed (81) 405 Value Destroyed (3342) 3342 Prototype IDs (12) 240 Alien Tech Used (0) 0 Bonus (5107) 5107 TOTAL SCORE: 14194 Bonus ------- Triggered High Security 500 High Alert Combat Kills 1296 Follower Combat Kills 1754 Met Warlord at Base 500 MAIN.C Attacked Warlord 500 Warlord Defense Kill 1646 Friendly Fire -1089 Cogmind --------- Core Integrity 0/1000 Matter 281/300 Energy 1684/1700 System Corruption 3% Temperature Cool (74) Movement Walking (140) Ox1 Location -4/Proximity Caves Parts ------- > --- POWER (2) -------- Vortex Chain Reactor > --- PROPULSION (4) --- Enhanced Armored Leg Enhanced Armored Leg Enhanced Biometal Leg Enhanced Biometal Leg > --- UTILITY (7) ------ Large Storage Unit Large Storage Unit Large Storage Unit Experimental Energy Well Improved Targeting Computer Experimental Targeting Computer Advanced Remote Shield > --- WEAPON (4) ------- Vortex Rail Coil Gun Coil Gun > --- INVENTORY (22) --- Light Nuclear Core Light Fission Core Armored Treads Medium Treads High-capacity Matter Pod (200) Improved Kinecellerator Improved Kinecellerator Beamcaster Beamcaster Vortex Rifle BFG-9k Vortex Edition KE Penetrator Lance Vortex Lance Vortex Lance Peak State ------------ > --- POWER ------------ Vortex Chain Reactor > --- PROPULSION ------- Enhanced Armored Leg Enhanced Armored Leg Enhanced Biometal Leg Enhanced Biometal Leg > --- UTILITY ---------- Large Storage Unit Large Storage Unit Large Storage Unit Experimental Energy Well Improved Targeting Computer Experimental Targeting Computer Advanced Remote Shield > --- WEAPON ----------- Vortex Rail Coil Gun Coil Gun Vortex Lance > --- INVENTORY -------- Light Nuclear Core Light Fission Core Armored Treads Medium Treads High-capacity Matter Pod Improved Kinecellerator Improved Kinecellerator Beamcaster Beamcaster Vortex Rifle Vortex Rifle Vortex Rail BFG-9k Vortex Edition Coil Gun KE Penetrator Lance Vortex Lance [Rating: 125] Favorites ----------- Power Light Nuclear Core Engine Heavy Deuterium Engine Power Core Light Nuclear Core Reactor Vortex Chain Reactor Propulsion Enhanced Armored Leg Treads Armored Treads Leg Enhanced Armored Leg Wheel Armored Wheel Flight Unit VTOL Module Utility Large Storage Unit Device Cooling System Storage Large Storage Unit Processor Improved Targeting Computer Protection Medium Armor Plating Weapon Coil Gun Energy Gun Shock Rifle Energy Cannon Advanced Beam Cannon Ballistic Gun Coil Gun Ballistic Cannon Improved Light Cannon Launcher Heavy Missile Launcher Slashing Weapon Axe Piercing Weapon Lance Build | -11 -10 -9 -9 -9 -8 -8 -7 -7 -7 -5 -5 -5 -4 ------- Run | Scr Mat Mat Min Exi Min Mat Fac Sto Rec Fac Upp War Pro Slots Evolved 10 | . . 2 . . . 2 2 . . 4 . . . Power 1 | . . . . . . . . . . 1 . . . Propulsion 2 | . . . . . . 1 1 . . . . . . Utility 5 | . . . . . . 1 1 . . 3 . . . Weapon 2 | . . 2 . . . . . . . . . . . Parts Attached 113 | 6 1 17 . 1 1 10 5 13 5 23 15 16 . Power 16 | 1 1 2 . . . 1 1 2 . 4 3 1 . Engine 11 | 1 1 2 . . . 1 . 2 . 4 . . . Core 4 | . . . . . . . 1 . . . 3 . . Reactor 1 | . . . . . . . . . . . . 1 . Propulsion 25 | 2 . 4 . . . 1 1 6 1 4 4 2 . Treads 13 | . . 3 . . . 1 1 5 1 1 1 . . Leg 6 | . . . . . . . . . . 2 2 2 . Wheel 5 | 2 . 1 . . . . . 1 . 1 . . . Hover . | . . . . . . . . . . . . . . Flight 1 | . . . . . . . . . . . 1 . . Utility 30 | 1 . 2 . 1 1 2 1 2 1 9 4 6 . Device 10 | . . 2 . . 1 . 1 . . 2 1 3 . Storage 9 | 1 . . . 1 . . . 1 . 1 3 2 . Processor 3 | . . . . . . . . . . 2 . 1 . Hackware . | . . . . . . . . . . . . . . Protection 8 | . . . . . . 2 . 1 1 4 . . . Artifact . | . . . . . . . . . . . . . . Weapon 42 | 2 . 9 . . . 6 2 3 3 6 4 7 . Energy Gun 13 | 1 . 3 . . . 3 . 2 . . . 4 . Energy Cannon 5 | . . 3 . . . 1 1 . . . . . . Ballistic Gun 14 | 1 . 1 . . . 2 . 1 2 2 3 2 . Ballistic Cannon 3 | . . 2 . . . . 1 . . . . . . Launcher 2 | . . . . . . . . . . 2 . . . Special Weapon . | . . . . . . . . . . . . . . Impact Weapon . | . . . . . . . . . . . . . . Slashing Weapon 2 | . . . . . . . . . 1 1 . . . Piercing Weapon 3 | . . . . . . . . . . 1 1 1 . Special Melee Weapon . | . . . . . . . . . . . . . . Unidentified Prototypes 12 | . . 1 . . . . . 2 . 1 . 8 . Parts Lost 36 | . . 5 . . . . 2 9 . 16 2 1 1 Power 3 | . . 1 . . . . . . . 2 . . . Propulsion 4 | . . . . . . . . 2 . . 2 . . Utility 11 | . . 1 . . . . . 2 . 8 . . . Weapon 18 | . . 3 . . . . 2 5 . 6 . 1 1 Highest Loss Streak 12 | . . 4 . . . . 2 6 . 12 1 1 1 Average Slot Usage (%) 91 | . 85 86 100 100 100 97 94 93 91 90 78 97 94 Engine 5 | . 14 11 11 11 11 8 3 5 7 10 . . . Core 2 | . . . . . . . 3 1 . . 7 7 . Treads 11 | . . 13 11 11 11 18 22 28 30 10 . . . Leg 7 | . . . . . . . . . . 3 15 23 23 Wheel 4 | . 28 8 11 11 11 9 7 1 . 3 1 . . Device 7 | . . 6 11 11 11 9 11 7 7 13 2 5 5 Storage 15 | . 14 11 11 11 11 9 7 14 15 11 18 26 23 Processor 3 | . . . . . . . . . . 4 5 7 11 Protection 2 | . . . . . . 8 7 7 7 5 . . . Energy Gun 6 | . 14 11 22 22 22 12 2 3 7 1 . 3 5 Energy Cannon 5 | . . 5 22 22 22 17 15 8 . . . . . Ballistic Gun 11 | . 14 10 . . . 4 7 6 12 15 16 14 17 Ballistic Cannon 1 | . . 6 . . . . 3 4 . . . . . Piercing Weapon 1 | . . . . . . . . . . 2 4 3 . Naked Turns . | . . . . . . . . . . . . . . Heaviest Build 122 | 12 12 25 23 35 36 45 45 67 66 85 68 122 119 Greatest Support 100 | 20 20 40 12 12 12 12 12 82 90 90 75 100 100 Greatest Overweight (x) 6 | . . 1 1 2 2 3 3 6 . 2 1 1 1 Average Overweight (x) . | . . . 1 1 2 2 3 . . 1 . . 1 Largest Inventory Capacity 22 | 6 6 6 6 10 10 10 10 16 16 16 16 22 22 Average Capacity 14 | 5 6 6 6 6 10 10 10 15 16 16 16 19 22 Most Carried 22 | 6 6 6 6 7 8 10 10 16 16 16 13 22 20 Average Carried 11 | 3 2 5 6 6 7 9 9 15 15 12 7 17 20 Final Capacity 22 | 6 6 6 6 10 10 10 10 16 16 16 16 22 22 Final Carried 20 | 6 4 6 6 7 8 10 10 16 16 13 10 20 20 Class Distribution -------------------- 20% | Gunner 18% | Scavenger-Gunner 15% | Scavenger-Tank 15% | Tank 12% | Hauler-Gunner 10% | Mutant 6% | Scavenger-Mutant Dominant Class ---------------- Mutant | -10/Materials Gunner | -9/Materials Gunner | -9/Mines Gunner | -9/Exiles Gunner | -8/Mines Tank | -8/Materials Tank | -7/Factory Tank | -7/Storage Scavenger-Tank | -7/Recycling Scavenger-Tank | -5/Factory Scavenger-Gunner | -5/Upper Caves Scavenger-Gunner | -5/Warlord Hauler-Gunner | -4/Proximity Caves Resources | -11 -10 -9 -9 -9 -8 -8 -7 -7 -7 -5 -5 -5 -4 ----------- Run | Scr Mat Mat Min Exi Min Mat Fac Sto Rec Fac Upp War Pro Matter Collected 2965 | 262 76 219 25 150 114 54 138 216 148 619 538 400 6 Remotely 34 | . . 34 . . . . . . . . . . . Salvage Created 2834 | 55 . 194 . . 20 54 78 442 154 1009 432 341 55 Parts 135 | 2 . 25 . . 3 2 5 23 13 33 11 11 7 Haulers Intercepted 1 | . . 1 . . . . . . . . . . . Recyclers Shooed 1 | . . . . . . . . . 1 . . . . Parts Field Recycled . | . . . . . . . . . . . . . . Retrieved Matter . | . . . . . . . . . . . . . . Parts Self-Destructed 81 | . . . . . . . . . . . 16 64 1 Prevented 5 | . . . . . . . . . . . 1 4 . Kills | -11 -10 -9 -9 -9 -8 -8 -7 -7 -7 -5 -5 -5 -4 ------- Run | Scr Mat Mat Min Exi Min Mat Fac Sto Rec Fac Upp War Pro Combat Hostiles Destroyed 64 | . . 7 . . 1 1 2 8 4 22 4 13 2 Guns 38 | . . . . . 1 . . 6 4 8 4 13 2 Cannons 9 | . . 4 . . . 1 2 2 . . . . . AOE 17 | . . 3 . . . . . . . 14 . . . Classes Destroyed 18 | 1 . 5 . . . . 1 1 . 5 2 3 . Builder 7 | . . 2 . . . . . 1 2 2 . . . Hauler 1 | . . 1 . . . . . . . . . . . Recycler 2 | 1 . . . . . . . . 1 . . . . Mechanic 1 | . . . . . . . . . . 1 . . . Drone 5 | . . . . . . . . 1 4 . . . . Swarmer 9 | . . 3 . . 1 . . 1 . 2 . . 2 Grunt 25 | . . 2 . . . 1 1 3 . 10 4 4 . Brawler 3 | . . . . . . . . . . 2 . 1 . Duelist 3 | . . . . . . . . . . 2 . 1 . Protector 3 | . . . . . . . . . . 2 . 1 . Sentry 5 | . . 2 . . . . . 3 . . . . . Demolisher 1 | . . . . . . . . . . . . 1 . Specialist 1 | . . . . . . . . . . . . 1 . Hunter 1 | . . . . . . . . . . 1 . . . Programmer 6 | . . . . . . . 1 1 . 3 . 1 . Behemoth 1 | . . . . . . . . . . . . 1 . Decomposer 2 | . . . . . . . . . . . 2 . . Samaritan 3 | . . . . . . . . . . . 3 . . Bouncer 1 | . . . . . . . . . . . . 1 . Marauder 1 | . . . . . . . . . . . . 1 . Best Kill Streak 13 | 1 . 5 . . 1 1 1 8 3 13 2 7 2 Combat Bots Only 12 | . . 4 . . 1 1 1 7 3 12 2 7 2 Max Kills in Single Turn 5 | 1 . 5 . . 1 1 1 2 2 3 2 2 1 Gunslinging . | . . . . . . . . . . . . . . Exploded 3 | . . 3 . . . . . . . 3 . . . Melee . | . . . . . . . . . . . . . . Uniques/NPCs Destroyed . | . . . . . . . . . . . . . . Combat | -11 -10 -9 -9 -9 -8 -8 -7 -7 -7 -5 -5 -5 -4 -------- Run | Scr Mat Mat Min Exi Min Mat Fac Sto Rec Fac Upp War Pro Damage Taken 7343 | . 101 984 . . 30 286 407 1467 208 2551 518 608 183 Core 848 | . 34 213 . . . 59 48 100 24 207 96 55 12 Absorbed by Shields 231 | . . . . . . . . . . . . 177 54 Core Remaining (%) 67 | 100 58 . . . 43 84 . . 54 . . . . Volleys Fired 156 | 2 5 13 . . 1 6 15 21 16 41 11 23 2 Largest 4 | 2 2 4 . . 4 4 4 4 4 3 3 4 4 Hottest 226 | 60 60 184 . . 226 219 219 195 129 101 90 145 135 Shots Fired 449 | 4 10 37 . . 4 18 55 52 39 97 33 92 8 Gun 356 | 4 10 18 . . 2 9 19 37 39 85 33 92 8 Cannon 81 | . . 19 . . 2 9 36 15 . . . . . Launcher 12 | . . . . . . . . . . 12 . . . Special . | . . . . . . . . . . . . . . Kinetic 297 | 2 5 31 . . . 6 21 28 23 82 33 60 6 Thermal 60 | . . 3 . . 4 12 34 7 . . . . . Explosive 9 | . . . . . . . . . . 9 . . . Electromagnetic 49 | 2 5 3 . . . . . 17 16 6 . . . Entropic 34 | . . . . . . . . . . . . 32 2 Robot Hit Streak 25 | 4 12 11 . . 12 14 5 25 4 14 14 16 3 Robot Miss Streak 8 | . 2 8 . . . 2 2 2 4 3 2 3 1 Penetration Max 2 | . . . . . . . . . . 1 1 2 1 Secondary Targets 9 | . . . . . . . . 1 . 1 1 6 . Max Gunslinging Chain 1 | . . . . . . . . 1 . 1 1 1 . Shots Hit Robots 322 | 4 8 25 . . 1 12 33 43 23 70 26 72 5 Core Hits 185 | 2 1 23 . . 1 4 12 20 9 68 12 31 2 Critical Hits 12 | . . . . . . 1 2 2 . . 2 5 . Critical Kills 4 | . . . . . . 1 1 . . . . 2 . Critical Parts Destroyed 6 | . . . . . . . 1 2 . . 2 1 . Melee Attacks 33 | . . . . . . . . . 7 14 7 5 . Impact . | . . . . . . . . . . . . . . Slashing 10 | . . . . . . . . . 7 3 . . . Piercing 22 | . . . . . . . . . . 11 7 4 . Entropic 1 | . . . . . . . . . . . . 1 . Sneak Attacks 9 | . . . . . . . . . 2 . 7 . . Combat Hostiles . | . . . . . . . . . . . . . . Follow-up Attacks . | . . . . . . . . . . . . . . Damage Inflicted 13093 | 44 97 1026 . . 13 235 585 748 726 5392 1150 2931 146 Guns 6048 | 44 97 87 . . 13 70 105 521 374 1249 411 2931 146 Cannons 1198 | . . 332 . . . 165 480 221 . . . . . Explosions 4740 | . . 607 . . . . . . 38 4095 . . . Melee 1090 | . . . . . . . . . 314 37 739 . . Ramming 17 | . . . . . . . . 6 . 11 . . . Kinetic 4368 | 19 43 407 . . . 35 96 344 166 1205 411 1496 146 Thermal 2087 | . . 12 . . 13 200 489 122 38 1213 . . . Explosive 2895 | . . 607 . . . . . . . 2288 . . . Electromagnetic 1201 | 25 54 . . . . . . 276 208 638 . . . Impact . | . . . . . . . . . . . . . . Slashing 314 | . . . . . . . . . 314 . . . . Piercing 776 | . . . . . . . . . . 37 739 . . Entropic 1435 | . . . . . . . . . . . . 1435 . Highest Corruption 6 | . . . . . . . 3 3 4 5 5 6 3 Average Corruption 3 | . . . . . . . 2 3 3 3 5 3 3 Corruption Purged . | . . . . . . . . . . . . . . Effects 68 | . . . . . . . 2 8 14 15 16 7 6 Message Errors 15 | . . . . . . . . 1 3 3 5 1 2 Matter Fused 17 | . . . . . . . 2 3 4 3 3 1 1 Heat Flow Errors 5 | . . . . . . . . . 3 . 2 . . Energy Discharges 4 | . . . . . . . . . 1 1 1 . 1 Parts Rejected 1 | . . . . . . . . . . 1 . . . Data Loss (minor) 12 | . . . . . . . . 2 2 2 3 2 1 Data Loss (major) 1 | . . . . . . . . . . . 1 . . Misfires 1 | . . . . . . . . . . . . 1 . Targeting Errors 10 | . . . . . . . . 2 1 4 1 1 1 Weapon Failures 2 | . . . . . . . . . . 1 . 1 . Overload Shots . | . . . . . . . . . . . . . . Overflow Damage 546 | . . 22 . . . . 6 . 96 206 216 . . Projectiles 6 | . . . . . . . 6 . . . . . . Explosions 236 | . . 22 . . . . . . 8 206 . . . Melee 304 | . . . . . . . . . 88 . 216 . . Knockbacks 4 | . . 3 . . . . . 1 . . . . . Impact . | . . . . . . . . . . . . . . Kinetic 4 | . . 3 . . . . . 1 . . . . . Secondary . | . . . . . . . . . . . . . . Self-Inflicted Damage 604 | . . 91 . . . . . . . 513 . . . Shots 13 | . . 1 . . . . . . . 12 . . . Rammed 4 | . . . . . . . . 1 1 2 . . . Targets Rammed 4 | . . . . . . . . 1 1 2 . . . Kicked . | . . . . . . . . . . . . . . Crushed . | . . . . . . . . . . . . . . Highest Temperature 364 | 20 76 308 . . 93 272 180 163 222 85 148 364 102 Average Temperature 105 | 15 33 159 . . 48 137 45 64 93 45 52 142 61 Received Heat Transfer 1403 | . 54 315 . . . 162 162 264 . 378 27 41 . Effects 3 | . . . . . . 2 . . . . . 1 . Interference 3 | . . . . . . 2 . . . . . 1 . Siege Activations . | . . . . . . . . . . . . . . Robots Corrupted . | . . . . . . . . . . . . . . Combat Hostiles . | . . . . . . . . . . . . . . Parts Fried . | . . . . . . . . . . . . . . Impact Corruptions . | . . . . . . . . . . . . . . Robots Melted . | . . . . . . . . . . . . . . Combat Hostiles . | . . . . . . . . . . . . . . Parts Melted 1 | . . . . . . 1 . . . . . . . Heat Transferred 2432 | . . 25 . . 37 370 851 222 50 877 . . . Parts Sabotaged . | . . . . . . . . . . . . . . Parts Stolen . | . . . . . . . . . . . . . . Parts Stripped . | . . . . . . . . . . . . . . Power Chain Reactions 3 | . . . . . . . . . 1 2 . . . Missiles Intercepted . | . . . . . . . . . . . . . . Alert | -11 -10 -9 -9 -9 -8 -8 -7 -7 -7 -5 -5 -5 -4 ------- Run | Scr Mat Mat Min Exi Min Mat Fac Sto Rec Fac Upp War Pro Peak Influence 2333 | 5 117 522 125 . 87 162 314 324 336 2333 . . . Average Influence 393 | 1 41 277 125 . 84 76 126 103 236 1452 . . . Maximum Alert Level 5 | . . 2 . . . . 1 1 1 5 . . . Low Security (%) 52 | 100 100 49 100 . 100 100 83 69 15 . . . . Level 1 24 | . . 13 . . . . 16 30 84 . . . . Level 2 4 | . . 36 . . . . . . . . . . . Level 3 8 | . . . . . . . . . . 47 . . . Level 4 1 | . . . . . . . . . . 6 . . . Level 5 1 | . . . . . . . . . . 8 . . . High Security 6 | . . . . . . . . . . 37 . . . Max Security . | . . . . . . . . . . . . . . Squads Dispatched 25 | . 1 3 . . . . 4 2 1 14 . . . Investigation 4 | . 1 1 . . . . 2 . . . . . . Extermination 2 | . . . . . . . 1 . . 1 . . . Reinforcement 7 | . . 2 . . . . 1 1 1 2 . . . Assault 10 | . . . . . . . . . . 10 . . . Garrison 2 | . . . . . . . . 1 . 1 . . . Intercept . | . . . . . . . . . . . . . . Construction Impeded 4 | . . 1 . . . . . 1 1 1 . . . Haulers Reinforced 1 | . . . . . . . 1 . . . . . . Stealth | -11 -10 -9 -9 -9 -8 -8 -7 -7 -7 -5 -5 -5 -4 --------- Run | Scr Mat Mat Min Exi Min Mat Fac Sto Rec Fac Upp War Pro Distress Signals 5 | . . 2 . . . . . 2 . 1 . . . Communications Jammed . | . . . . . . . . . . . . . . Distress Signals . | . . . . . . . . . . . . . . Times Spotted 180 | . 7 19 . . 3 7 13 19 15 42 11 39 5 Peak Tracking Total 19 | . 3 10 . . 3 5 6 13 3 19 3 11 5 Tactical Retreats 4 | . . . . . . . . 1 . 2 1 . . Traps | -11 -10 -9 -9 -9 -8 -8 -7 -7 -7 -5 -5 -5 -4 ------- Run | Scr Mat Mat Min Exi Min Mat Fac Sto Rec Fac Upp War Pro Traps Triggered 9 | . 1 3 . . . 3 . 1 . 1 . . . Indirectly . | . . . . . . . . . . . . . . Trap Hack Attempts . | . . . . . . . . . . . . . . Triggered . | . . . . . . . . . . . . . . Disarmed . | . . . . . . . . . . . . . . Reprogrammed . | . . . . . . . . . . . . . . Reused . | . . . . . . . . . . . . . . Traps Extracted . | . . . . . . . . . . . . . . Installed . | . . . . . . . . . . . . . . Triggered 10 | . . . . . . . . . . . . 10 . Machines | -11 -10 -9 -9 -9 -8 -8 -7 -7 -7 -5 -5 -5 -4 ---------- Run | Scr Mat Mat Min Exi Min Mat Fac Sto Rec Fac Upp War Pro Machines Disabled 17 | . . 1 . . . . 1 1 1 10 . 3 . Max in Single Turn 5 | . . 1 . . . . . . . 5 . 1 . Garrison Access 1 | . . . . . . . . . . 1 . . . Machines Sabotaged . | . . . . . . . . . . . . . . Garrisons Compromised . | . . . . . . . . . . . . . . Overloaded Fab Kills . | . . . . . . . . . . . . . . Fab Network Shutdowns . | . . . . . . . . . . . . . . Hacking | -11 -10 -9 -9 -9 -8 -8 -7 -7 -7 -5 -5 -5 -4 --------- Run | Scr Mat Mat Min Exi Min Mat Fac Sto Rec Fac Upp War Pro Machines Accessed 15 | . . 1 . 2 . . 4 3 4 . . 1 . Terminals 9 | . . 1 . . . . 4 3 1 . . . . Fabricators . | . . . . . . . . . . . . . . Repair Stations . | . . . . . . . . . . . . . . Recycling Units 3 | . . . . . . . . . 3 . . . . Scanalyzers . | . . . . . . . . . . . . . . Garrison Access . | . . . . . . . . . . . . . . Total Hacks 31 | . . 3 . 2 . . 9 9 7 . . 1 . Successful 17 | . . 1 . 2 . . 3 3 7 . . 1 . Failed 14 | . . 2 . . . . 6 6 . . . . . Catastrophic 6 | . . . . . . . 3 3 . . . . . Database Lockouts . | . . . . . . . . . . . . . . Manual 10 | . . . . . . . 3 7 . . . . . Terminals 22 | . . 3 . . . . 9 9 1 . . . . Fabricators . | . . . . . . . . . . . . . . Repair Stations . | . . . . . . . . . . . . . . Recycling Units 6 | . . . . . . . . . 6 . . . . Scanalyzers . | . . . . . . . . . . . . . . Garrison Access . | . . . . . . . . . . . . . . Terminal Hacks 10 | . . 1 . 2 . . 3 2 1 . . 1 . Record 2 | . . . . 2 . . . . . . . . . Open Door 3 | . . . . . . . . 2 . . . 1 . Branch Access Points 1 | . . . . . . . 1 . . . . . . Unreport Threat 2 | . . . . . . . 2 . . . . . . Zone Layout 2 | . . 1 . . . . . . 1 . . . . Fabricator Hacks . | . . . . . . . . . . . . . . Repair Station Hacks . | . . . . . . . . . . . . . . Recycling Unit Hacks 6 | . . . . . . . . . 6 . . . . Report Inventory 3 | . . . . . . . . . 3 . . . . Retrieve Components 3 | . . . . . . . . . 3 . . . . Scanalyzer . | . . . . . . . . . . . . . . Garrison Access Hacks . | . . . . . . . . . . . . . . Unauthorized Hacks 4 | . . . . . . . . 4 . . . . . Terminals 1 | . . . . . . . . 1 . . . . . Track 1 | . . . . . . . . 1 . . . . . Fabricators . | . . . . . . . . . . . . . . Repair Stations . | . . . . . . . . . . . . . . Recycling Units . | . . . . . . . . . . . . . . Scanalyzers . | . . . . . . . . . . . . . . Garrison Access . | . . . . . . . . . . . . . . Data Cores Recovered . | . . . . . . . . . . . . . . Used . | . . . . . . . . . . . . . . Hacking Detections 7 | . . 1 . . . . 4 2 . . . . . Full Trace Events 2 | . . . . . . . 2 . . . . . . Feedback Events . | . . . . . . . . . . . . . . Feedback Blocked . | . . . . . . . . . . . . . . Robot Schematics Acquired . | . . . . . . . . . . . . . . Robots Built . | . . . . . . . . . . . . . . Matter . | . . . . . . . . . . . . . . Time . | . . . . . . . . . . . . . . Total Robot Build Rating . | . . . . . . . . . . . . . . Part Schematics Acquired . | . . . . . . . . . . . . . . Parts Built . | . . . . . . . . . . . . . . Matter . | . . . . . . . . . . . . . . Time . | . . . . . . . . . . . . . . Total Part Build Rating . | . . . . . . . . . . . . . . Parts Repaired . | . . . . . . . . . . . . . . Time . | . . . . . . . . . . . . . . Parts Recycled . | . . . . . . . . . . . . . . Recycled Matter . | . . . . . . . . . . . . . . Retrieved Matter . | . . . . . . . . . . . . . . Retrieved Components 9 | . . . . . . . . . 9 . . . . Parts Scanalyzed . | . . . . . . . . . . . . . . Part Schematics Acquired . | . . . . . . . . . . . . . . Parts Damaged . | . . . . . . . . . . . . . . Bothacking | -11 -10 -9 -9 -9 -8 -8 -7 -7 -7 -5 -5 -5 -4 ------------ Run | Scr Mat Mat Min Exi Min Mat Fac Sto Rec Fac Upp War Pro Used RIF Installer . | . . . . . . . . . . . . . . Robots Hacked . | . . . . . . . . . . . . . . Non-combat . | . . . . . . . . . . . . . . Combat . | . . . . . . . . . . . . . . Robot Hacks Applied . | . . . . . . . . . . . . . . Relay Couplers Released 1 | . . . . . . . . . . 1 . . . Machine Destruction 1 | . . . . . . . . . . 1 . . . Robots Rewired . | . . . . . . . . . . . . . . Allies Hacked . | . . . . . . . . . . . . . . Hacks Repelled . | . . . . . . . . . . . . . . Allies | -11 -10 -9 -9 -9 -8 -8 -7 -7 -7 -5 -5 -5 -4 -------- Run | Scr Mat Mat Min Exi Min Mat Fac Sto Rec Fac Upp War Pro Total Allies 1 | . 1 . . . . . . . . . . . . Largest Group 1 | . 1 1 1 1 1 1 1 1 1 1 1 1 1 Highest-Rated Group 144 | . 57 65 65 65 66 69 79 90 88 123 97 138 144 Highest-Rated Ally 144 | . 57 65 65 65 66 69 79 90 88 123 97 138 144 Total Orders 5 | . . . . . . . . 5 . . . . . STAY 1 | . . . . . . . . 1 . . . . . FOLLOW 1 | . . . . . . . . 1 . . . . . EXPLORE 3 | . . . . . . . . 3 . . . . . Ally Attacks 246 | . 19 25 . . 3 4 21 22 41 59 22 27 3 Total Damage 6922 | . 159 675 . . 51 166 557 623 1130 1790 760 952 59 Kills 76 | . 3 12 . . 2 2 11 6 15 13 6 5 1 Allies Corrupted . | . . . . . . . . . . . . . . Allies Melted . | . . . . . . . . . . . . . . Intel | -11 -10 -9 -9 -9 -8 -8 -7 -7 -7 -5 -5 -5 -4 ------- Run | Scr Mat Mat Min Exi Min Mat Fac Sto Rec Fac Upp War Pro Robot Analysis Total . | . . . . . . . . . . . . . . Derelict Logs Recovered 3 | . . . 1 . . . . . . . . . 2 Drone Launches 16 | . . . . . . . . 16 . . . . . Drone Recoveries . | . . . . . . . . . . . . . . Exploration | -11 -10 -9 -9 -9 -8 -8 -7 -7 -7 -5 -5 -5 -4 ------------- Run | Scr Mat Mat Min Exi Min Mat Fac Sto Rec Fac Upp War Pro Turns Passed 5290 | 62 129 414 186 243 99 254 427 361 645 566 673 897 334 Spaces Moved 3262 | 53 102 292 180 235 73 172 271 149 298 244 408 554 231 Core 3 | 3 . . . . . . . . . . . . . Treads 636 | . . 111 . . . . . 112 298 115 . . . Legs 1077 | . . . . . . . . . . . 292 554 231 Wheels 1546 | 50 102 181 180 235 73 172 271 37 . 129 116 . . Hover . | . . . . . . . . . . . . . . Flight . | . . . . . . . . . . . . . . Fastest Speed 50 | 50 80 80 100 100 110 110 120 120 158 110 110 120 140 Average Speed 126 | 78 80 115 100 101 110 119 120 153 158 141 132 131 140 Slowest Speed 185 | 80 80 170 100 110 110 120 120 181 158 185 150 150 140 Overloaded Moves . | . . . . . . . . . . . . . . Propulsion Burnouts . | . . . . . . . . . . . . . . Robots Hopped . | . . . . . . . . . . . . . . Cave-ins Triggered . | . . . . . . . . . . . . . . Exploration Rate (%) 37 | 4 28 38 55 60 17 19 9 50 68 10 40 74 46 Regions Visited 13 Branch Regions 8 Pre-discovered Areas 1 | . . . . . . . . . . . . . 1 Known Exits Taken 1 | . . . . . . . 1 . . . . . . Unknown Exits Taken 12 | 1 1 1 1 1 1 1 . 1 1 1 1 1 . Scrap Searched 4 | . . . 1 . . . . . . . 1 . 2 Spaces Dug 19 | . . . . . . . . . 3 12 . 4 . Terrain Destroyed 254 | . . 25 . . . . . 1 9 199 2 12 6 Melee 19 | . . . . . . . . . 3 12 . 4 . Projectile 19 | . . . . . . . . 1 . 2 2 8 6 AOE 216 | . . 25 . . . . . . 6 185 . . . Actions | -11 -10 -9 -9 -9 -8 -8 -7 -7 -7 -5 -5 -5 -4 --------- Run | Scr Mat Mat Min Exi Min Mat Fac Sto Rec Fac Upp War Pro Total 4043 | 66 141 341 186 240 88 206 340 239 429 367 501 663 236 Wait 343 | . 29 . 7 3 13 11 42 34 96 13 51 41 3 Move 3250 | 52 101 291 179 234 72 171 270 148 297 244 407 553 231 Hop . | . . . . . . . . . . . . . . Pick Up 62 | 6 1 7 . 1 1 5 5 8 3 11 6 8 . Fast Attach 66 | 6 . 15 . . . 8 2 7 2 9 8 9 . Attach 31 | . . 2 . . . 2 3 3 2 11 5 3 . Detach 16 | . . 1 . . . . . 1 1 8 . 5 . Swap 16 | . 1 . . 1 1 . . 3 1 3 2 4 . Drop 59 | . 4 12 . 1 . 3 3 5 3 12 4 12 . Fire 156 | 2 5 13 . . 1 6 15 21 16 41 11 23 2 Melee 33 | . . . . . . . . . 7 14 7 5 . Ram 1 | . . . . . . . . . . 1 . . . Kick . | . . . . . . . . . . . . . . Crush 2 | . . . . . . . . 1 1 . . . . Escape Stasis . | . . . . . . . . . . . . . . Rewire . | . . . . . . . . . . . . . . Trap . | . . . . . . . . . . . . . . Miscellaneous 8 | . . . . . . . . 8 . . . . . Route ------- -11/Scrapyard -10/Materials -9/Materials (discovered 2 exits: [*Min x2]) -9/Mines -9/Exiles -8/Mines -8/Materials -7/Factory (discovered 3 exits: *Sto / Low x2) -7/Storage -7/Recycling -5/Factory -5/Upper Caves -5/Warlord -4/Proximity Caves History --------- Turn | Location | Event 5 | -11/Scrapyard | Discovered new exit (range 16) 63 | -11/Scrapyard | Entered Materials 172 | -10/Materials | Discovered new exit (range 8) 192 | -10/Materials | Entered another Materials area 192 | -9/Materials | Accompanied by 1 ally 192 | -9/Materials | Evolved 2 slots: Weapon x2 433 | -9/Materials | Core integrity fell below 50% 458 | -9/Materials | Discovered new exit (range 10) 463 | -9/Materials | Lost 4 parts (1p1u2w) 464 | -9/Materials | Discovered new exit (range 16) 606 | -9/Materials | Entered Mines 606 | -9/Mines | Accompanied by 1 ally 754 | -9/Mines | Build established: Gunner 779 | -9/Mines | Deemed a non-threat by the Exiles lab entrance 780 | -9/Mines | Discovered new exit (range 5) 792 | -9/Mines | Entered Exiles 792 | -9/Exiles | Found Exiles lab abandoned 792 | -9/Exiles | Accompanied by 1 ally 1020 | -9/Exiles | Discovered new exit (range 11) 1035 | -9/Exiles | Entered Mines 1035 | -8/Mines | Accompanied by 1 ally 1117 | -8/Mines | Discovered new exit (range 9) 1134 | -8/Mines | Entered Materials 1134 | -8/Materials | Accompanied by 1 ally 1134 | -8/Materials | Evolved 2 slots: Propulsion x1, Utility x1 1356 | -8/Materials | Discovered new exit (range 4) 1388 | -8/Materials | Entered Factory 1388 | -7/Factory | Accompanied by 1 ally 1388 | -7/Factory | Evolved 2 slots: Propulsion x1, Utility x1 1389 | -7/Factory | Identified exit to Storage 1721 | -7/Factory | Build established: Tank 1721 | -7/Factory | Identified exit to Lower Caves 1815 | -7/Factory | Entered Storage 1815 | -7/Storage | Accompanied by 1 ally 2068 | -7/Storage | Lost 6 parts (1n1u4w) 2091 | -7/Storage | Destroyed 7 combat bots 2112 | -7/Storage | Garrison activated, responded to threat 2145 | -7/Storage | Used back door to open Recycling access 2145 | -7/Storage | Discovered new exit (range 5) 2176 | -7/Storage | Entered Recycling 2176 | -7/Recycling | Accompanied by 1 ally 2184 | -7/Recycling | Spotter reported a threat 2203 | -7/Recycling | Spotter reported a threat 2207 | -7/Recycling | Spotter reported a threat 2208 | -7/Recycling | Spotter reported a threat 2211 | -7/Recycling | Spotter reported a threat 2211 | -7/Recycling | Spotter reported a threat 2248 | -7/Recycling | Spotter reported a threat 2291 | -7/Recycling | Spotter reported a threat 2293 | -7/Recycling | Spotter reported a threat 2328 | -7/Recycling | Spotter reported a threat 2344 | -7/Recycling | Spotter reported a threat 2363 | -7/Recycling | Spotter reported a threat 2391 | -7/Recycling | Spotter reported a threat 2420 | -7/Recycling | Build established: Scavenger-Mutant 2509 | -7/Recycling | Spotter reported a threat 2516 | -7/Recycling | Spotter reported a threat 2565 | -7/Recycling | Spotter reported a threat 2566 | -7/Recycling | Spotter reported a threat 2604 | -7/Recycling | Spotter reported a threat 2607 | -7/Recycling | Spotter reported a threat 2641 | -7/Recycling | Spotter reported a threat 2666 | -7/Recycling | Spotter reported a threat 2667 | -7/Recycling | Spotter reported a threat 2680 | -7/Recycling | Discovered new exit (range 11) 2682 | -7/Recycling | Spotter reported a threat 2702 | -7/Recycling | Spotter reported a threat 2719 | -7/Recycling | Spotter reported a threat 2740 | -7/Recycling | Spotter reported a threat 2755 | -7/Recycling | Spotter reported a threat 2808 | -7/Recycling | Spotter reported a threat 2817 | -7/Recycling | Build established: Scavenger-Tank 2821 | -7/Recycling | Entered Factory 2821 | -5/Factory | Accompanied by 1 ally 2821 | -5/Factory | Evolved 4 slots: Power x1, Utility x3 3009 | -5/Factory | Lost 3 parts (2u1w) 3088 | -5/Factory | Garrison activated, responded to threat 3121 | -5/Factory | First assault squad dispatched 3173 | -5/Factory | High security lockdown imminent 3253 | -5/Factory | High security lockdown engaged 3335 | -5/Factory | Discovered new exit (range 8) 3362 | -5/Factory | Core integrity fell below 50% 3387 | -5/Factory | Entered Upper Caves 3387 | -5/Upper Caves | Accompanied by 1 ally 3404 | -5/Upper Caves | Destroyed 12 combat bots 3414 | -5/Upper Caves | Lost 12 parts (2p5u5w) 3542 | -5/Upper Caves | Spotted B-75 Beast 3596 | -5/Upper Caves | Core integrity fell below 20% 3982 | -5/Upper Caves | Build established: Scavenger-Gunner 4055 | -5/Upper Caves | A Derelict revealed a hidden shortcut to "reach the base" 4060 | -5/Upper Caves | Entered Warlord 4060 | -5/Warlord | Accompanied by 1 ally 4101 | -5/Warlord | System corruption cleaned by Quarantine Array 4440 | -5/Warlord | Visited the Vortex Lab 4446 | -5/Warlord | Found Prototype Energy Gun 4446 | -5/Warlord | Identified Vortex Rail 4448 | -5/Warlord | Found Vortex Rail 4452 | -5/Warlord | Found Prototype Piercing Weapon 4455 | -5/Warlord | Found Prototype Energy Gun 4455 | -5/Warlord | Identified Vortex Rifle 4456 | -5/Warlord | Warlord's base attacked by MAIN.C 4461 | -5/Warlord | Found Prototype Piercing Weapon 4467 | -5/Warlord | Found Vortex Rifle 4473 | -5/Warlord | Met EX-DEC 4473 | -5/Warlord | Found Prototype Energy Cannon 4558 | -5/Warlord | Met Warlord 4632 | -5/Warlord | Identified Vortex Lance (x2) 4643 | -5/Warlord | Found Prototype Reactor 4643 | -5/Warlord | Identified Vortex Chain Reactor 4650 | -5/Warlord | Found Prototype Processor 4650 | -5/Warlord | Identified Exp. Targeting Computer 4736 | -5/Warlord | Spotted 9R-MSZ(B) 4737 | -5/Warlord | Destroyed 9R-MSZ(B) 4781 | -5/Warlord | Destroyed 7 combat bots 4785 | -5/Warlord | Spotted B-86 Titan 4791 | -5/Warlord | Destroyed B-86 Titan 4806 | -5/Warlord | Warlord forces counterattacked 4808 | -5/Warlord | Spotted Executioner 4829 | -5/Warlord | Spotted Executioner 4829 | -5/Warlord | Spotted Executioner 4913 | -5/Warlord | Spotted Executioner 4924 | -5/Warlord | Discovered new exit (range 13) 4925 | -5/Warlord | Build established: Hauler-Gunner 4957 | -5/Warlord | Entered Proximity Caves 4957 | -4/Proximity Caves | Accompanied by 1 ally 4991 | -4/Proximity Caves | Learned Research garrison access intel 5238 | -4/Proximity Caves | Learned location of Testing (-2) 5291 | -4/Proximity Caves | Destroyed by S-27 Virus with Autogun Last Messages --------------- 05203_ Found 43 Matter. 05203_ Found Slug Cannon. 05203_ Found Mak. Axe. 05203_ Found Matter Filter. 05238_ Acquired derelict log, extracted data. World map updated: -2/Testing. 05283_ Slug penetrates Wall. 05284_ System corrupted: Vortex Rail targeting data glitched. 05284_ Vortex penetrates Wall. 05284_ Slug penetrates S-27 Virus. 05284_ S-27 Virus destroyed. 05284_ Slug penetrates S-27 Virus. 05287_ Vortex penetrates Wall. 05287_ Slug penetrates S-27 Virus. 05287_ S-27 Virus destroyed. 05287_ Destroyed VTOL Module. 05288_ VTOL Module fries itself beyond repair. 05290_ Coil Gun destroyed. 05290_ Slug penetrates S-27 Virus. 05290_ S-27 Virus destroyed. Map ----- +----------------------------------------------------+ | ????# #?# ### #### ????????????????????? | | ????# ### ???????????????????? | | ??### !## ????????????????????? | | ?## ]%/## #### ?????????????????????????? | | ?# ## ##??# ?????????????????????????? | | ?# #### #??? #?????????????????????????? | | ?## #??# #?### #?????????????????????????? | | ??## #### ### # #?????????????????????????? | | ???## ## ##????????????????????????? | | ????#### ##???????????????????????? | | ???????# ##### ##??????????????????????? | | ???????# #???# #??????????????????????? | | ???????## #####??## ##?????????????????????? | | ????????# #????### #??###????????????????? | | ?# #### #????# #?? ##???????????????? | | # #????## ## ##? #???????????????? | | #??##?# ## ## #???????????????? | | #????# ### #????????????????? | | #??? #?# #????????????????? | | ? #?# ### #????? #?????????? | | ###### ####?# #??###??? ??????????? | | #?????###### ##????# #??????? #???????????? | | ????????????####?????# #????? ##??????????? | | ??????????????????????# #???# ##?????????? | | ???????????????????????# ### #?????????? | | ???????????????????????##@s@[= #????????? | | ???????????????????????# s*[% #????????? | | ???????????????????????# %*[ #????????? | | ??????????????????????# #????????? | | ??????????????????????# ####????????? | | ?????????????????????# ##???????????? | | ?????????????????????# ###;; ;##????????????? | | ?????????????????????# ##??#;;##;#?????????????? | | ?????????????????????####?????###??#?????????????? | | ?????????????????????????????????????????????????? | | ?????????????????????????????????????????????????? | | ?????????????????????????????????????????????????? | | ?????????????????????????????????????????????????? | | ?????????????????????????????????????????????????? | | ?????????????????????????????????????????????????? | | ?????????????????????????????????????????????????? | | ?????????????????????????????????????????????????? | | ?????????????????????????????????????????????????? | | ?????????????????????????????????????????????????? | | ?????????????????????????????????????????????????? | | ?????????????????????????????????????????????????? | | ?????????????????????????????????????????????????? | | ?????????????????????????????????????????????????? | | ?????????????????????????????????????????????????? | | | +----------------------------------------------------+ Best States ------------- Heat Dissipation 70 Energy Generation 55 Energy Capacity 1700 Matter Stores 300 Matter Capacity 300 Sight Range 16 Terrain Scan Range 20 Terrain Scan Density 210 Armor Coverage 450 Phase Shifting 5 Evasion (%) 45 Targeting Accuracy 18 Recoil Reduction 4 Kinecelleration 40 Item Schematics ----------------- None Robot Schematics ------------------ None Fabricated ------------ Nothing Alien Tech Used ----------------- None Achievements -------------- None Challenges ------------ None Game ------ Seed BiocellVisualShield Manual? 0 Play Time 01:14:55 Cumulative 225.9 hours Start 2020.04.08 @ 10:45:24 End 2020.04.08 @ 12:01:06 Sessions 1 Manual Loads 0 Difficulty Rogue Special Mode AFD2020/Player2 Game No. 80 Rogue 80 Adventurer 0 Explorer 0 Win Type - Total 18 Types 14/0/1/2/0/1/0 Lore% 31 Gallery% 73 Achievement% 76 Wizard Run 0 Options --------- ASCII 0 Keyboard 1 Movement Numpad Keybinds 0 Fullscreen 2 Font 20/SmallcapsGlow Map View 66x50 Tactical HUD 1 Map Filters NONE Filters NONE Steam 1 RUN: 6062d65b-7d77-4eea-ae7c-6736bb4ebe9b